fUST/lending_fUST_20250118
["ID","MTS","AMOUNT","RATE_DAILY","PERIOD"]
[349393586,1737153069292,-500.0,0.00023287,3]
[349393587,1737153069301,-1370.88,0.00023287,3]
[349393588,1737153069310,-509.12,0.00023287,3]
[349393589,1737153069319,-500.0,0.00023287,3]
[349393590,1737153069329,-1583.99,0.00023287,3]
[349393591,1737153069339,-500.0,0.00023287,3]
[349393592,1737153069348,-499.0,0.00023287,4]
[349393593,1737153069358,-3204.95,0.00023287,3]
[349393594,1737153069367,-969.31,0.00023287,3]
[349393595,1737153069376,-3816.49,0.00023287,3]
[349393596,1737153069386,-359.0098632,0.00023287,3]
[349393597,1737153069396,-500.0,0.00023287,3]
[349393598,1737153069406,-500.0,0.00023287,3]
[349393599,1737153069416,-500.0,0.00023287,3]
[349393600,1737153069430,-500.0,0.00023287,3]
[349393601,1737153069439,-500.0,0.00023287,3]
[349393602,1737153069449,-500.0,0.00023287,3]
[349393603,1737153069458,-500.0,0.00023287,3]
[349393604,1737153069469,-1113.84,0.00023287,3]
[349393605,1737153069478,-1357.5,0.00023287,3]
[349393606,1737153069488,-524.78,0.00023287,3]
[349393607,1737153069500,-2784.49,0.00023287,3]
[349393608,1737153069510,-500.0,0.00023287,3]
[349393609,1737153069519,-390.20903502,0.00023287,3]
[349393610,1737153069528,-1042.72,0.00023287,3]
[349393611,1737153069538,-919.12,0.00023287,3]
[349393612,1737153069547,-158.35428837,0.00023287,3]
[349393613,1737153069556,-500.0,0.00023287,3]
[349393614,1737153069566,-500.0,0.00023287,3]
[349393615,1737153069576,-500.0,0.00023287,3]
[349393616,1737153069585,-500.0,0.00023287,3]
[349393617,1737153069595,-1298.93,0.00023287,3]
[349393618,1737153069604,-500.0,0.00023287,3]
[349393619,1737153069614,-500.0,0.00023287,3]
[349393620,1737153069623,-629.53,0.00023287,3]
[349393621,1737153069633,-1197.63,0.00023287,3]
[349393622,1737153069642,-586.78,0.00023287,3]
[349393623,1737153069652,-1228.0,0.00023328,7]
[349393624,1737153069661,-925.63002472,0.00023348,3]
[349393625,1737153069671,-281.16817966,0.00023399,2]
[349393626,1737153069682,-925.63002472,0.00023417,3]
[349393627,1737153069691,-6667.97204446,0.00023424,59]
[349393628,1737153069701,-500.0,0.00023424,3]
[349393629,1737153069711,-151.0,0.00023424,7]
[349393630,1737153069720,-500.0,0.00023424,3]
[349393631,1737153069730,-228.73058678,0.00023424,3]
[349393632,1737153069739,-160.13819104,0.00023424,3]
[349393633,1737153069748,-500.0,0.00023424,3]
[349393634,1737153069758,-500.0,0.00023424,3]
[349393635,1737153069767,-500.0,0.00023424,3]
[349393636,1737153069776,-539.41,0.00023424,3]
[349393637,1737153069786,-500.0,0.00023424,3]
[349393638,1737153069796,-500.0,0.00023424,3]
[349393639,1737153069805,-500.0,0.00023424,3]
[349393640,1737153069815,-500.0,0.00023424,3]
[349393641,1737153069824,-500.0,0.00023424,3]
[349393642,1737153069834,-509.44,0.00023424,3]
[349393643,1737153069844,-500.0,0.00023424,3]
[349393644,1737153069854,-500.0,0.00023424,3]
[349393645,1737153069864,-500.0,0.00023424,3]
[349393646,1737153069873,-500.0,0.00023424,3]
[349393647,1737153069883,-1370.88,0.00023424,3]
[349393648,1737153069892,-509.12,0.00023424,3]
[349393649,1737153069902,-500.0,0.00023424,3]
[349393650,1737153069911,-1583.99,0.00023424,3]
[349393651,1737153069921,-500.0,0.00023424,3]
[349393652,1737153069931,-3204.95,0.00023424,3]
[349393653,1737153069940,-969.31,0.00023424,3]
[349393654,1737153069950,-3816.49,0.00023424,3]
[349393655,1737153069960,-500.0,0.00023424,3]
[349393656,1737153069969,-500.0,0.00023424,3]
[349393657,1737153069979,-500.0,0.00023424,3]
[349393658,1737153069988,-500.0,0.00023424,3]
[349393659,1737153069998,-500.0,0.00023424,3]
[349393660,1737153070007,-500.0,0.00023424,3]
[349393661,1737153070017,-500.0,0.00023424,3]
[349393662,1737153070027,-1113.84,0.00023424,3]
[349393663,1737153070036,-1357.5,0.00023424,3]
[349393664,1737153070046,-524.78,0.00023424,3]
[349393665,1737153070056,-500.0,0.00023424,3]
[349393666,1737153070066,-2784.49,0.00023424,3]
[349393667,1737153070075,-1042.72,0.00023424,3]
[349393668,1737153070085,-919.12,0.00023424,3]
[349393669,1737153070093,-500.0,0.00023424,3]
[349393670,1737153070103,-608.10065513,0.00023424,3]
[349393671,1737153070112,-500.0,0.00023424,3]
[349393672,1737153070121,-500.0,0.00023424,3]
[349393673,1737153070130,-1298.93,0.00023424,3]
[349393674,1737153070139,-500.0,0.00023424,3]
[349393675,1737153070148,-500.0,0.00023424,3]
[349393676,1737153070158,-629.53,0.00023424,3]
[349393677,1737153070166,-1197.63,0.00023424,3]
[349393678,1737153070175,-586.78,0.00023424,3]
[349393679,1737153070184,-925.63002472,0.00023486,3]
[349393680,1737153070194,-10304.57,0.000235,2]
[349393681,1737153070203,-4735.74,0.000235,14]
[349393682,1737153070212,-1880.86,0.000235,14]
[349393683,1737153070221,-925.63002472,0.00023555,3]
[349393684,1737153070230,-151.0,0.00023561,7]
[349393685,1737153070239,-151.0,0.00023561,7]
[349393686,1737153070247,-152.972493,0.00023561,7]
[349393687,1737153070256,-151.0,0.00023561,7]
[349393688,1737153070265,-500.0,0.00023561,3]
[349393689,1737153070274,-500.0,0.00023561,3]
[349393690,1737153070283,-509.51,0.00023561,3]
[349393691,1737153070293,-500.0,0.00023561,3]
[349393692,1737153070303,-624.73,0.00023561,3]
[349393693,1737153070312,-500.0,0.00023561,3]
[349393694,1737153070321,-500.0,0.00023561,3]
[349393695,1737153070390,-383.59,0.00023561,3]
[349393696,1737153070400,-500.0,0.00023561,3]
[349393697,1737153070409,-509.44,0.00023561,3]
[349393698,1737153070420,-500.0,0.00023561,3]
[349393699,1737153070432,-612.96291,0.00023561,7]
[349393700,1737153070441,-500.0,0.00023561,3]
[349393701,1737153070451,-612.96291,0.00023561,7]
[349393702,1737153070461,-151.0,0.00023561,7]
[349393703,1737153070471,-500.0,0.00023561,3]
[349393704,1737153070479,-500.0,0.00023561,3]
[349393705,1737153070489,-1370.88,0.00023561,3]
[349393706,1737153070499,-509.12,0.00023561,3]
[349393707,1737153070509,-500.0,0.00023561,3]
[349393708,1737153070518,-1583.99,0.00023561,3]
[349393709,1737153070528,-500.0,0.00023561,3]
[349393710,1737153070537,-3204.95,0.00023561,3]
[349393711,1737153070546,-969.31,0.00023561,3]
[349393712,1737153070555,-151.569278,0.00023561,7]
[349393713,1737153070564,-3816.49,0.00023561,3]
[349393714,1737153070573,-151.569278,0.00023561,7]
[349393715,1737153070582,-151.0,0.00023561,7]
[349393716,1737153070591,-500.0,0.00023561,3]
[349393717,1737153070600,-151.0,0.00023561,7]
[349393718,1737153070610,-500.0,0.00023561,3]
[349393719,1737153070620,-500.0,0.00023561,3]
[349393720,1737153070629,-500.0,0.00023561,3]
[349393721,1737153070639,-500.0,0.00023561,3]
[349393722,1737153070648,-500.0,0.00023561,3]
[349393723,1737153070657,-353.53361743,0.00023561,3]
[349393724,1737153070667,-1113.84,0.00023561,3]
[349393725,1737153070676,-545.779231,0.00023561,7]
[349393726,1737153070686,-545.779231,0.00023561,7]
[349393727,1737153070695,-1357.5,0.00023561,3]
[349393728,1737153070704,-524.78,0.00023561,3]
[349393729,1737153070713,-500.0,0.00023561,3]
[349393730,1737153070724,-2784.49,0.00023561,3]
[349393731,1737153070732,-1042.72,0.00023561,3]
[349393732,1737153070741,-919.12,0.00023561,3]
[349393733,1737153070751,-500.0,0.00023561,3]
[349393734,1737153070760,-500.0,0.00023561,3]
[349393735,1737153070769,-500.0,0.00023561,3]
[349393736,1737153070778,-1298.93,0.00023561,3]
[349393737,1737153070788,-500.0,0.00023561,3]
[349393738,1737153070798,-500.0,0.00023561,3]
[349393739,1737153070808,-629.53,0.00023561,3]
[349393740,1737153070818,-1197.63,0.00023561,3]
[349393741,1737153070827,-586.78,0.00023561,3]
[349393742,1737153070836,-153.8,0.000236,31]
[349393743,1737153070846,-153.8,0.000236,31]
[349393744,1737153070855,-153.8,0.000236,31]
[349393745,1737153070865,-153.8,0.000236,31]
[349393746,1737153070875,-153.8,0.000236,31]
[349393747,1737153070884,-153.8,0.000236,31]
[349393748,1737153070893,-153.8,0.000236,31]
[349393749,1737153070902,-153.8,0.000236,31]
[349393750,1737153070912,-153.8,0.000236,31]
[349393751,1737153070921,-153.8,0.000236,31]
[349393752,1737153070931,-153.8,0.000236,31]
[349393753,1737153070940,-153.8,0.000236,31]
[349393754,1737153070950,-153.8,0.000236,31]
[349393755,1737153070960,-153.8,0.000236,31]
[349393756,1737153070969,-925.63002472,0.00023624,3]
[349393757,1737153070979,-281.16817966,0.00023663,2]
[349393758,1737153070989,-925.63002472,0.00023693,3]
[349393759,1737153070999,-212.198118,0.00023698,7]
[349393760,1737153071009,-212.198118,0.00023698,7]
[349393761,1737153071019,-151.0,0.00023698,7]
[349393762,1737153071029,-173.165989,0.00023698,7]
[349393763,1737153071039,-173.165989,0.00023698,7]
[349393764,1737153071049,-500.0,0.00023698,3]
[349393765,1737153071059,-500.0,0.00023698,3]
[349393766,1737153071069,-537.913445,0.00023698,2]
[349393767,1737153071079,-537.913445,0.00023698,2]
[349393768,1737153071088,-500.0,0.00023698,3]
[349393769,1737153071097,-181.086533,0.00023698,7]
[349393770,1737153071106,-151.0,0.00023698,7]
[349393771,1737153071115,-181.086533,0.00023698,7]
[349393772,1737153071124,-242.841273,0.00023698,7]
[349393773,1737153071134,-500.0,0.00023698,3]
[349393774,1737153071143,-200.93,0.00023698,3]
[349393775,1737153071153,-1082.785434,0.00023698,7]
[349393776,1737153071171,-391.526914,0.00023698,7]
[349393777,1737153071195,-1082.785434,0.00023698,7]
[349393778,1737153071205,-212.032668,0.00023698,7]
[349393779,1737153071215,-391.526914,0.00023698,7]
[349393780,1737153071225,-212.032668,0.00023698,7]
[349393781,1737153071234,-500.0,0.00023698,3]
[349393782,1737153071243,-509.44,0.00023698,3]
[349393783,1737153071253,-503.52057692,0.00023698,3]
[349393784,1737153071263,-500.0,0.00023698,3]
[349393785,1737153071272,-500.0,0.00023698,3]
[349393786,1737153071282,-500.0,0.00023698,3]
[349393787,1737153071291,-1370.88,0.00023698,3]
[349393788,1737153071301,-509.12,0.00023698,3]
[349393789,1737153071311,-500.0,0.00023698,3]
[349393790,1737153071321,-1583.99,0.00023698,3]
[349393791,1737153071331,-492.946776,0.00023698,7]
[349393792,1737153071341,-500.0,0.00023698,3]
[349393793,1737153071350,-492.946776,0.00023698,7]
[349393794,1737153071359,-3204.95,0.00023698,3]
[349393795,1737153071369,-969.31,0.00023698,3]
[349393796,1737153071379,-3816.49,0.00023698,3]
[349393797,1737153071389,-500.0,0.00023698,3]
[349393798,1737153071399,-500.0,0.00023698,3]
[349393799,1737153071409,-500.0,0.00023698,3]
[349393800,1737153071476,-500.0,0.00023698,3]
[349393801,1737153071493,-500.0,0.00023698,3]
[349393802,1737153071503,-337.28,0.00023698,3]
[349393803,1737153071512,-1113.84,0.00023698,3]
[349393804,1737153071522,-1357.5,0.00023698,3]
[349393805,1737153071531,-524.78,0.00023698,3]
[349393806,1737153071541,-500.0,0.00023698,3]
[349393807,1737153071551,-2784.49,0.00023698,3]
[349393808,1737153071561,-1042.72,0.00023698,3]
[349393809,1737153071571,-919.12,0.00023698,3]
[349393810,1737153071580,-500.0,0.00023698,3]
[349393811,1737153071589,-500.0,0.00023698,3]
[349393812,1737153071598,-500.0,0.00023698,3]
[349393813,1737153071608,-1298.93,0.00023698,3]
[349393814,1737153071617,-500.0,0.00023698,3]
[349393815,1737153071626,-500.0,0.00023698,3]
[349393816,1737153071636,-629.53,0.00023698,3]
[349393817,1737153071646,-1197.63,0.00023698,3]
[349393818,1737153071656,-586.78,0.00023698,3]
[349393819,1737153071665,-2000.0,0.000237,2]
[349393820,1737153071675,-212.198118,0.00023749,7]
[349393821,1737153071685,-212.198118,0.00023749,7]
[349393822,1737153071695,-212.198118,0.00023749,7]
[349393823,1737153071705,-212.198118,0.00023749,7]
[349393824,1737153071715,-212.198118,0.00023749,7]
[349393825,1737153071724,-212.198118,0.00023749,7]
[349393826,1737153071734,-212.198118,0.00023749,7]
[349393827,1737153071744,-212.198118,0.00023749,7]
[349393828,1737153071753,-212.198118,0.00023749,7]
[349393829,1737153071763,-212.198118,0.00023749,7]
[349393830,1737153071772,-212.198118,0.00023749,7]
[349393831,1737153071782,-212.198118,0.00023749,7]
[349393832,1737153071792,-212.198118,0.00023749,7]
[349393833,1737153071801,-212.198118,0.00023749,7]
[349393834,1737153071811,-212.198118,0.00023749,7]
[349393835,1737153071821,-212.198109,0.00023749,7]
[349393836,1737153071831,-151.0,0.00023749,7]
[349393837,1737153071840,-151.0,0.00023749,7]
[349393838,1737153071849,-151.0,0.00023749,7]
[349393839,1737153071859,-151.0,0.00023749,7]
[349393840,1737153071868,-151.0,0.00023749,7]
[349393841,1737153071878,-151.0,0.00023749,7]
[349393842,1737153071888,-151.0,0.00023749,7]
[349393843,1737153071898,-151.0,0.00023749,7]
[349393844,1737153071908,-151.0,0.00023749,7]
[349393845,1737153071918,-151.0,0.00023749,7]
[349393846,1737153071928,-151.0,0.00023749,7]
[349393847,1737153071937,-151.0,0.00023749,7]
[349393848,1737153071949,-151.0,0.00023749,7]
[349393849,1737153071970,-151.0,0.00023749,7]
[349393850,1737153071986,-251.633399,0.00023749,7]
[349393851,1737153072004,-151.0,0.00023749,7]
[349393852,1737153072022,-274.105112,0.00023749,7]
[349393853,1737153072038,-151.0,0.00023749,7]
[349393854,1737153072056,-151.0,0.00023749,7]
[349393855,1737153072074,-1000.0,0.00023749,7]
[349393856,1737153072088,-1000.0,0.00023749,7]
[349393857,1737153072105,-1000.0,0.00023749,7]
[349393858,1737153072124,-1000.0,0.00023749,7]
[349393859,1737153072143,-1000.0,0.00023749,7]
[349393860,1737153072155,-1000.0,0.00023749,7]
[349393861,1737153072172,-1000.0,0.00023749,7]
[349393862,1737153072187,-1000.0,0.00023749,7]
[349393863,1737153072203,-1000.0,0.00023749,7]
[349393864,1737153072217,-1000.0,0.00023749,7]
[349393865,1737153072232,-1000.0,0.00023749,7]
[349393866,1737153072247,-1000.0,0.00023749,7]
[349393867,1737153072262,-1000.0,0.00023749,7]
[349393868,1737153072277,-1000.0,0.00023749,7]
[349393869,1737153072293,-1000.0,0.00023749,7]
[349393870,1737153072307,-1000.0,0.00023749,7]
[349393871,1737153072321,-1000.0,0.00023749,7]
[349393872,1737153072336,-1000.0,0.00023749,7]
[349393873,1737153072350,-1000.0,0.00023749,7]
[349393874,1737153072364,-1000.0,0.00023749,7]
[349393875,1737153072380,-1000.0,0.00023749,7]
[349393876,1737153072394,-1000.0,0.00023749,7]
[349393877,1737153072408,-1000.0,0.00023749,7]
[349393878,1737153072425,-1000.0,0.00023749,7]
[349393879,1737153072439,-1000.0,0.00023749,7]
[349393880,1737153072452,-1000.0,0.00023749,7]
[349393881,1737153072469,-1000.0,0.00023749,7]
[349393882,1737153072483,-1000.0,0.00023749,7]
[349393883,1737153072498,-1000.0,0.00023749,7]
[349393884,1737153072513,-1000.0,0.00023749,7]
[349393885,1737153072527,-1000.0,0.00023749,7]
[349393886,1737153072541,-1000.0,0.00023749,7]
[349393887,1737153072555,-1000.0,0.00023749,7]
[349393888,1737153072569,-1000.0,0.00023749,7]
[349393889,1737153072584,-1000.0,0.00023749,7]
[349393890,1737153072598,-1000.0,0.00023749,7]
[349393891,1737153072612,-1000.0,0.00023749,7]
[349393892,1737153072627,-1000.0,0.00023749,7]
[349393893,1737153072643,-1000.0,0.00023749,7]
[349393894,1737153072657,-1000.0,0.00023749,7]
[349393895,1737153072672,-1000.0,0.00023749,7]
[349393896,1737153072686,-1000.0,0.00023749,7]
[349393897,1737153072790,-1000.0,0.00023749,7]
[349393898,1737153072804,-1000.0,0.00023749,7]
[349393899,1737153072814,-1000.0,0.00023749,7]
[349393900,1737153072823,-1000.0,0.00023749,7]
[349393901,1737153072834,-1000.0,0.00023749,7]
[349393902,1737153072843,-1000.0,0.00023749,7]
[349393903,1737153072853,-1000.0,0.00023749,7]
[349393904,1737153072862,-151.0,0.00023749,7]
[349393905,1737153072872,-1000.0,0.00023749,7]
[349393906,1737153072882,-151.0,0.00023749,7]
[349393907,1737153072891,-1000.0,0.00023749,7]
[349393908,1737153072901,-151.0,0.00023749,7]
[349393909,1737153072911,-1000.0,0.00023749,7]
[349393910,1737153072922,-1000.0,0.00023749,7]
[349393911,1737153072932,-1000.0,0.00023749,7]
[349393912,1737153072941,-1000.0,0.00023749,7]
[349393913,1737153072951,-1000.0,0.00023749,7]
[349393914,1737153072961,-1000.0,0.00023749,7]
[349393915,1737153072970,-1014.327227,0.00023749,7]
[349393916,1737153072980,-619.292312,0.00023749,7]
[349393917,1737153072989,-619.292312,0.00023749,7]
[349393918,1737153072998,-619.292312,0.00023749,7]
[349393919,1737153073008,-619.292312,0.00023749,7]
[349393920,1737153073017,-619.292312,0.00023749,7]
[349393921,1737153073026,-619.292312,0.00023749,7]
[349393922,1737153073036,-619.292312,0.00023749,7]
[349393923,1737153073045,-619.292312,0.00023749,7]
[349393924,1737153073054,-619.292312,0.00023749,7]
[349393925,1737153073064,-619.292312,0.00023749,7]
[349393926,1737153073074,-619.292312,0.00023749,7]
[349393927,1737153073083,-619.292312,0.00023749,7]
[349393928,1737153073093,-619.292312,0.00023749,7]
[349393929,1737153073102,-619.292302,0.00023749,7]
[349393930,1737153073111,-151.0,0.00023749,7]
[349393931,1737153073120,-277.472178,0.00023749,7]
[349393932,1737153073129,-277.472178,0.00023749,7]
[349393933,1737153073138,-277.472178,0.00023749,7]
[349393934,1737153073148,-277.472178,0.00023749,7]
[349393935,1737153073157,-277.472178,0.00023749,7]
[349393936,1737153073166,-277.472178,0.00023749,7]
[349393937,1737153073175,-277.472178,0.00023749,7]
[349393938,1737153073185,-277.472178,0.00023749,7]
[349393939,1737153073194,-341.830555,0.00023749,7]
[349393940,1737153073203,-277.472178,0.00023749,7]
[349393941,1737153073213,-341.830555,0.00023749,7]
[349393942,1737153073222,-277.472178,0.00023749,7]
[349393943,1737153073231,-341.830555,0.00023749,7]
[349393944,1737153073240,-277.472178,0.00023749,7]
[349393945,1737153073250,-341.830555,0.00023749,7]
[349393946,1737153073260,-277.472178,0.00023749,7]
[349393947,1737153073269,-341.830555,0.00023749,7]
[349393948,1737153073278,-277.472178,0.00023749,7]
[349393949,1737153073288,-341.830555,0.00023749,7]
[349393950,1737153073297,-277.472178,0.00023749,7]
[349393951,1737153073306,-341.830555,0.00023749,7]
[349393952,1737153073315,-341.830555,0.00023749,7]
[349393953,1737153073324,-341.830555,0.00023749,7]
[349393954,1737153073334,-341.830555,0.00023749,7]
[349393955,1737153073343,-341.830555,0.00023749,7]
[349393956,1737153073352,-341.830555,0.00023749,7]
[349393957,1737153073362,-341.830555,0.00023749,7]
[349393958,1737153073370,-341.830557,0.00023749,7]
[349393959,1737153073380,-173.165989,0.00023749,7]
[349393960,1737153073389,-173.165989,0.00023749,7]
[349393961,1737153073398,-173.165989,0.00023749,7]
[349393962,1737153073407,-173.165989,0.00023749,7]
[349393963,1737153073417,-173.165989,0.00023749,7]
[349393964,1737153073432,-173.165989,0.00023749,7]
[349393965,1737153073442,-173.165989,0.00023749,7]
[349393966,1737153073451,-173.165989,0.00023749,7]
[349393967,1737153073462,-173.165989,0.00023749,7]
[349393968,1737153073472,-173.165989,0.00023749,7]
[349393969,1737153073482,-173.165989,0.00023749,7]
[349393970,1737153073492,-173.165991,0.00023749,7]
[349393971,1737153073503,-537.913445,0.00023749,2]
[349393972,1737153073513,-537.913445,0.00023749,2]
[349393973,1737153073523,-537.913445,0.00023749,2]
[349393974,1737153073532,-537.913445,0.00023749,2]
[349393975,1737153073542,-537.913445,0.00023749,2]
[349393976,1737153073551,-537.913445,0.00023749,2]
[349393977,1737153073560,-537.913445,0.00023749,2]
[349393978,1737153073568,-537.913445,0.00023749,2]
[349393979,1737153073577,-537.913445,0.00023749,2]
[349393980,1737153073585,-537.913445,0.00023749,2]
[349393981,1737153073593,-537.913445,0.00023749,2]
[349393982,1737153073602,-537.91344,0.00023749,2]
[349393983,1737153073610,-181.086533,0.00023749,7]
[349393984,1737153073620,-181.086533,0.00023749,7]
[349393985,1737153073630,-151.0,0.00023749,7]
[349393986,1737153073638,-181.086533,0.00023749,7]
[349393987,1737153073648,-199.392112,0.00023749,7]
[349393988,1737153073656,-181.086533,0.00023749,7]
[349393989,1737153073664,-181.086533,0.00023749,7]
[349393990,1737153073672,-181.086533,0.00023749,7]
[349393991,1737153073681,-181.086533,0.00023749,7]
[349393992,1737153073690,-181.086533,0.00023749,7]
[349393993,1737153073698,-181.086533,0.00023749,7]
[349393994,1737153073706,-181.086533,0.00023749,7]
[349393995,1737153073714,-181.086533,0.00023749,7]
[349393996,1737153073722,-181.086535,0.00023749,7]
[349393997,1737153073730,-242.841273,0.00023749,7]
[349393998,1737153073737,-242.841273,0.00023749,7]
[349393999,1737153073746,-242.841273,0.00023749,7]
[349394000,1737153073755,-242.841273,0.00023749,7]
[349394001,1737153073764,-242.841273,0.00023749,7]
[349394002,1737153073774,-242.841273,0.00023749,7]
[349394003,1737153073783,-242.841273,0.00023749,7]
[349394004,1737153073791,-242.841271,0.00023749,7]
[349394005,1737153073800,-391.526914,0.00023749,7]
[349394006,1737153073810,-1082.785434,0.00023749,7]
[349394007,1737153073820,-1082.785434,0.00023749,7]
[349394008,1737153073829,-391.526914,0.00023749,7]
[349394009,1737153073839,-1082.785434,0.00023749,7]
[349394010,1737153073849,-391.526914,0.00023749,7]
[349394011,1737153073860,-1082.785434,0.00023749,7]
[349394012,1737153073870,-391.526914,0.00023749,7]
[349394013,1737153073940,-391.526914,0.00023749,7]
[349394014,1737153073951,-1082.785434,0.00023749,7]
[349394015,1737153073962,-391.526914,0.00023749,7]
[349394016,1737153073972,-1082.785434,0.00023749,7]
[349394017,1737153073982,-1082.785434,0.00023749,7]
[349394018,1737153073992,-1082.785434,0.00023749,7]
[349394019,1737153074002,-1082.785434,0.00023749,7]
[349394020,1737153074012,-212.032668,0.00023749,7]
[349394021,1737153074022,-391.526914,0.00023749,7]
[349394022,1737153074032,-1082.785434,0.00023749,7]
[349394023,1737153074041,-391.526914,0.00023749,7]
[349394024,1737153074050,-212.032668,0.00023749,7]
[349394025,1737153074060,-1082.785434,0.00023749,7]
[349394026,1737153074069,-212.032668,0.00023749,7]
[349394027,1737153074079,-391.526914,0.00023749,7]
[349394028,1737153074089,-1082.785438,0.00023749,7]
[349394029,1737153074099,-391.526914,0.00023749,7]
[349394030,1737153074109,-212.032668,0.00023749,7]
[349394031,1737153074119,-391.526914,0.00023749,7]
[349394032,1737153074129,-212.032668,0.00023749,7]
[349394033,1737153074138,-391.526924,0.00023749,7]
[349394034,1737153074147,-212.032668,0.00023749,7]
[349394035,1737153074156,-212.032668,0.00023749,7]
[349394036,1737153074165,-212.032668,0.00023749,7]
[349394037,1737153074174,-212.032668,0.00023749,7]
[349394038,1737153074185,-212.032668,0.00023749,7]
[349394039,1737153074195,-212.032668,0.00023749,7]
[349394040,1737153074204,-212.032675,0.00023749,7]
[349394041,1737153074214,-492.946776,0.00023749,7]
[349394042,1737153074224,-492.946776,0.00023749,7]
[349394043,1737153074233,-492.946776,0.00023749,7]
[349394044,1737153074243,-492.946776,0.00023749,7]
[349394045,1737153074252,-492.946776,0.00023749,7]
[349394046,1737153074262,-492.946776,0.00023749,7]
[349394047,1737153074271,-492.946776,0.00023749,7]
[349394048,1737153074281,-492.946776,0.00023749,7]
[349394049,1737153074290,-492.946776,0.00023749,7]
[349394050,1737153074299,-492.946776,0.00023749,7]
[349394051,1737153074310,-492.946776,0.00023749,7]
[349394052,1737153074320,-492.946772,0.00023749,7]
[349394053,1737153074329,-500.0,0.00023751,2]
[349394054,1737153074339,-612.96291,0.00023753,7]
[349394055,1737153074349,-612.96291,0.00023753,7]
[349394056,1737153074358,-151.0,0.00023753,7]
[349394057,1737153074368,-151.569278,0.00023753,7]
[349394058,1737153074378,-151.569278,0.00023753,7]
[349394059,1737153074388,-151.0,0.00023753,7]
[349394060,1737153074398,-151.0,0.00023753,7]
[349394061,1737153074408,-545.779231,0.00023753,7]
[349394062,1737153074418,-545.779231,0.00023753,7]
[349394063,1737153074432,-153.0,0.00023753,2]
[349394064,1737153074442,-353.5775999,0.00023753,2]
[349394065,1737153074452,-353.5775999,0.00023753,2]
[349394066,1737153074461,-353.5775999,0.00023753,2]
[349394067,1737153074472,-353.5775999,0.00023753,2]
[349394068,1737153074482,-353.5775999,0.00023753,2]
[349394069,1737153074492,-353.5775999,0.00023753,2]
[349394070,1737153074502,-353.5775999,0.00023753,2]
[349394071,1737153074513,-353.5775999,0.00023753,2]
[349394072,1737153074523,-353.5775999,0.00023753,2]
[349394073,1737153074532,-353.5775999,0.00023753,2]
[349394074,1737153074541,-353.5775999,0.00023753,2]
[349394075,1737153074551,-353.5775999,0.00023753,2]
[349394076,1737153074561,-925.63002472,0.00023762,3]
[349394077,1737153074570,-343.76729711,0.00023763,5]
[349394078,1737153074580,-393.27588619,0.00023763,5]
[349394079,1737153074591,-612.96291,0.00023763,7]
[349394080,1737153074600,-612.96291,0.00023763,7]
[349394081,1737153074611,-612.96291,0.00023763,7]
[349394082,1737153074620,-612.96291,0.00023763,7]
[349394083,1737153074629,-612.96291,0.00023763,7]
[349394084,1737153074639,-612.96291,0.00023763,7]
[349394085,1737153074648,-612.96291,0.00023763,7]